Cogmind - Beta 12 @@@ ROGUE MODE // 2024.02.06 @ 21:15:02 // Winter2019/RPGLIKE Player: Luminiferous Result: Self-destructed Performance ------------- Evolutions (1) 500 Regions Visited (6) 1200 Robots Destroyed (55) 275 Value Destroyed (1182) 1182 Prototype IDs (24) 480 Alien Tech Used (0) 0 Bonus (333) 333 TOTAL SCORE: 3970 Bonus ------- High Alert Combat Kills 33 Aligned with FarCom 300 Cogmind --------- Core Integrity 345/1000 Matter 5/300 Energy 265/265 System Corruption 3% Temperature Hot (251) Movement Rolling (95) Ox1 Location -8/Mines Parts ------- > --- POWER (1) -------- Improved Ion Engine > --- PROPULSION (3) --- Wheel VTOL Module Improved Flight Unit > --- UTILITY (4) ------ Structural Scanner Signal Interpreter Transport Network Coupler > --- WEAPON (3) ------- Light Cannon Improved Light Cannon > --- INVENTORY (5) ---- Light Nuclear Core Structural Scanner 0b10 Alert Chip Peak State ------------ > --- POWER ------------ Improved Ion Engine > --- PROPULSION ------- Potential Leg VTOL Module Improved Flight Unit > --- UTILITY ---------- Structural Scanner Signal Interpreter Transport Network Coupler Light Armor Plating > --- WEAPON ----------- (None) > --- INVENTORY -------- Light Nuclear Core Structural Scanner Light Cannon Improved Light Cannon [Rating: 21] Favorites ----------- Power Improved Ion Engine Engine Improved Ion Engine Power Core Light Nuclear Core Propulsion Compact Wheel Leg Aluminum Leg Wheel Compact Wheel Flight Unit VTOL Module Utility Transport Network Coupler Device Structural Scanner Processor Transport Network Coupler Protection Light Armor Plating Weapon Autogun Energy Gun Medium Laser Energy Cannon Beam Cannon Ballistic Gun Autogun Ballistic Cannon Light Cannon Impact Weapon Hammer Build | -11 -10 -10 -9 -9 -9 -8 ------- Run | Jun Mat Min Mat Min Exi Min Slots Evolved 7 | 3 . . 3 . 1 . Power . | . . . . . . . Propulsion 2 | 1 . . . . 1 . Utility 3 | 1 . . 2 . . . Weapon 2 | 1 . . 1 . . . Parts Attached 43 | 3 5 . 28 . 5 2 Power 3 | . . . 3 . . . Engine 2 | . . . 2 . . . Core 1 | . . . 1 . . . Reactor . | . . . . . . . Propulsion 12 | 2 . . 5 . 5 . Treads . | . . . . . . . Leg 1 | . . . . . 1 . Wheel 6 | 2 . . 3 . 1 . Hover . | . . . . . . . Flight 5 | . . . 2 . 3 . Utility 11 | . 2 . 9 . . . Device 5 | . 1 . 4 . . . Storage . | . . . . . . . Processor 2 | . 1 . 1 . . . Hackware . | . . . . . . . Protection 4 | . . . 4 . . . Artifact . | . . . . . . . Weapon 17 | 1 3 . 11 . . 2 Energy Gun 3 | 1 2 . . . . . Energy Cannon 1 | . 1 . . . . . Ballistic Gun 6 | . . . 6 . . . Ballistic Cannon 5 | . . . 3 . . 2 Launcher . | . . . . . . . Special Weapon . | . . . . . . . Impact Weapon 2 | . . . 2 . . . Slashing Weapon . | . . . . . . . Piercing Weapon . | . . . . . . . Special Melee Weapon . | . . . . . . . Unidentified Prototypes 1 | . . . 1 . . . Parts Lost 1 | . . . . . . 1 Power . | . . . . . . . Propulsion . | . . . . . . . Utility 1 | . . . . . . 1 Weapon . | . . . . . . . Highest Loss Streak 1 | . . . . . . 1 To Critical Strikes . | . . . . . . . Average Slot Usage (%) 92 | . 83 100 97 100 72 88 Engine 11 | . 14 14 11 10 9 9 Wheel 20 | . 28 28 23 20 9 9 Flight 4 | . . . . . 17 18 Device 9 | . 5 14 11 10 9 9 Processor 14 | . 6 14 14 20 18 18 Protection 7 | . . . 10 10 9 8 Energy Gun 5 | . 27 14 . . . . Energy Cannon 3 | . . 14 5 . . . Ballistic Gun 6 | . . . 12 10 . . Ballistic Cannon 6 | . . . 5 20 . 16 Naked Turns . | . . . . . . . Heaviest Build 21 | 9 11 11 21 21 11 18 Greatest Support 32 | 32 32 32 32 26 30 10 Greatest Overweight (x) 5 | . . . 5 . 1 1 Average Overweight (x) . | . . . . . . 1 Largest Inventory Capacity 5 | 3 3 3 4 4 5 5 Average Capacity 3 | 3 3 3 3 4 4 5 Most Carried 5 | 2 3 3 4 4 5 5 Average Carried 3 | . 2 3 3 4 4 3 Final Capacity 5 | 3 3 3 4 4 5 5 Final Carried 5 | 1 3 3 4 4 5 3 Class Distribution -------------------- 41% | Mutant 33% | Scavenger-Mutant 22% | Scavenger-Gunner Dominant Class ---------------- Mutant | -10/Materials Mutant | -10/Mines Mutant | -9/Materials Scavenger-Gunner | -9/Mines Scavenger-Mutant | -9/Exiles Scavenger-Mutant | -8/Mines Resources | -11 -10 -10 -9 -9 -9 -8 ----------- Run | Jun Mat Min Mat Min Exi Min Matter Collected 1269 | 200 70 10 838 104 . 47 Remotely . | . . . . . . . Salvage Created 1605 | . 190 . 1385 30 . . Parts 122 | . 16 . 83 15 . 8 Haulers Intercepted 6 | . 2 . 4 . . . Recyclers Shooed 3 | . . . 2 1 . . Parts Field Recycled . | . . . . . . . Retrieved Matter . | . . . . . . . Parts Self-Destructed . | . . . . . . . Prevented . | . . . . . . . Kills | -11 -10 -10 -9 -9 -9 -8 ------- Run | Jun Mat Min Mat Min Exi Min Combat Hostiles Destroyed 42 | . 7 . 23 8 . 4 Guns 28 | . 7 . 16 5 . . Cannons 14 | . . . 7 3 . 4 Classes Destroyed 8 | . 3 . 5 . . . Builder 1 | . . . 1 . . . Hauler 6 | . 2 . 4 . . . Recycler 1 | . . . 1 . . . Operator 3 | . . . 3 . . . Watcher 2 | . . . 2 . . . Swarmer 21 | . 6 . 3 8 . 4 Grunt 12 | . 1 . 11 . . . Sentry 9 | . . . 9 . . . Best Kill Streak 5 | . 4 . 5 4 . 4 Combat Bots Only 5 | . 4 . 5 4 . 4 Max Kills in Single Turn 1 | . 1 . 1 1 . 1 Gunslinging . | . . . . . . . Exploded . | . . . . . . . Melee . | . . . . . . . Uniques/NPCs Destroyed . | . . . . . . . Combat | -11 -10 -10 -9 -9 -9 -8 -------- Run | Jun Mat Min Mat Min Exi Min Damage Taken 1871 | . 185 . 879 251 . 556 Core 1401 | . 142 . 668 174 . 417 Absorbed by Shields . | . . . . . . . Redirected to Core 1071 | . 118 . 463 167 . 323 Redirected to Shielding 4 | . . . 4 . . . Core Remaining (%) 97 | 100 . 94 . . . . Volleys Fired 152 | . 26 . 86 20 . 20 Largest 3 | . 2 . 3 3 . 2 Hottest 110 | . 100 . 110 97 . 74 Shots Fired 311 | . 52 . 174 59 . 26 Gun 176 | . 52 . 104 20 . . Cannon 135 | . . . 70 39 . 26 Launcher . | . . . . . . . Special . | . . . . . . . Kinetic 223 | . . . 138 59 . 26 Thermal 88 | . 52 . 36 . . . Explosive . | . . . . . . . Electromagnetic . | . . . . . . . Robot Hit Streak 12 | . 5 . 12 4 . 6 Robot Miss Streak 6 | . 3 . 6 4 . 2 Penetration Max . | . . . . . . . Secondary Targets 1 | . 1 . . . . . Max Gunslinging Chain 1 | . 1 . . . . . Shots Hit Robots 171 | . 29 . 106 18 . 18 Core Hits 75 | . 11 . 51 8 . 5 Critical Kills . | . . . . . . . Critical Parts Destroyed 1 | . . . 1 . . . Critical Strikes 8 | . 4 . 4 . . . Burn 5 | . 4 . 1 . . . Destroy 1 | . . . 1 . . . Blast 2 | . . . 2 . . . Melee Attacks . | . . . . . . . Impact . | . . . . . . . Slashing . | . . . . . . . Piercing . | . . . . . . . Sneak Attacks . | . . . . . . . Combat Hostiles . | . . . . . . . Follow-up Attacks . | . . . . . . . Damage Inflicted 2794 | . 388 . 1731 300 . 375 Guns 1605 | . 388 . 1073 144 . . Cannons 1183 | . . . 658 156 . 369 Explosions . | . . . . . . . Melee . | . . . . . . . Ramming 6 | . . . . . . 6 Kinetic 1985 | . . . 1316 300 . 369 Thermal 803 | . 388 . 415 . . . Explosive . | . . . . . . . Electromagnetic . | . . . . . . . Impact . | . . . . . . . Slashing . | . . . . . . . Piercing . | . . . . . . . Highest Corruption 3 | . . . 3 3 3 3 Average Corruption 3 | . . . 3 3 3 3 Corruption Purged . | . . . . . . . Corruption Blocked . | . . . . . . . Effects 21 | . . . 7 2 4 8 Message Errors 4 | . . . 1 . 2 1 Matter Fused 4 | . . . 2 . . 2 Heat Flow Errors 1 | . . . . . . 1 Energy Discharges 8 | . . . 3 1 2 2 Data Loss (minor) 2 | . . . . 1 . 1 Data Loss (major) 2 | . . . 1 . . 1 Overload Shots . | . . . . . . . Overflow Damage 1 | . . . . . . 1 Projectiles 1 | . . . . . . 1 Explosions . | . . . . . . . Melee . | . . . . . . . Knockbacks 8 | . . . 2 3 . 3 Impact . | . . . . . . . Kinetic 8 | . . . 2 3 . 3 Secondary . | . . . . . . . Self-Inflicted Damage 3 | . . . . . . 3 Shots . | . . . . . . . Rammed 2 | . . . . . . 2 Targets Rammed 2 | . . . . . . 2 Kicked . | . . . . . . . Crushed . | . . . . . . . Highest Temperature 496 | . 234 . 317 496 . 242 Average Temperature 96 | . 75 . 72 215 . 43 Received Heat Transfer 684 | . 6 . 390 . . 288 Effects 6 | . . . 3 3 . . Shutdowns 1 | . . . . 1 . . Interference 4 | . . . 3 1 . . Matter Decay 1 | . . . . 1 . . Siege Activations . | . . . . . . . Robots Corrupted . | . . . . . . . Combat Hostiles . | . . . . . . . Parts Fried . | . . . . . . . Impact Corruptions . | . . . . . . . Robots Melted 1 | . 1 . . . . . Combat Hostiles . | . . . . . . . Parts Melted 11 | . 7 . 4 . . . Heat Transferred 2405 | . 1443 . 962 . . . Parts Sabotaged . | . . . . . . . Parts Stolen . | . . . . . . . Parts Stripped . | . . . . . . . Power Chain Reactions . | . . . . . . . Missiles Intercepted . | . . . . . . . Alert | -11 -10 -10 -9 -9 -9 -8 ------- Run | Jun Mat Min Mat Min Exi Min Peak Influence 519 | . 241 33 519 377 . 87 Initial 195 | . . 33 12 195 . . Average 155 | . 75 33 229 280 . 13 Maximum Alert Level 2 | . 1 . 2 1 . . Low Security (%) 66 | 100 93 100 49 18 . 100 Level 1 24 | . 6 . 32 81 . . Level 2 8 | . . . 18 . . . Level 3 . | . . . . . . . Level 4 . | . . . . . . . Level 5 . | . . . . . . . High Security . | . . . . . . . Max Security . | . . . . . . . Squads Dispatched 4 | . 1 . 3 . . . Investigation 1 | . . . 1 . . . Extermination . | . . . . . . . Reinforcement 3 | . 1 . 2 . . . Assault . | . . . . . . . Garrison . | . . . . . . . Intercept . | . . . . . . . Searches Triggered . | . . . . . . . Construction Impeded . | . . . . . . . Haulers Reinforced . | . . . . . . . Active Scanning Responses . | . . . . . . . Cargo Convoy Interrupts . | . . . . . . . Stealth | -11 -10 -10 -9 -9 -9 -8 --------- Run | Jun Mat Min Mat Min Exi Min Distress Signals 3 | . . . 3 . . . Communications Jammed . | . . . . . . . Distress Signals . | . . . . . . . Times Spotted 64 | . 14 . 32 8 . 10 Peak Tracking Total 6 | . 5 . 5 4 . 6 Tactical Retreats 2 | . 1 . . . . 1 Traps | -11 -10 -10 -9 -9 -9 -8 ------- Run | Jun Mat Min Mat Min Exi Min Traps Triggered 1 | . . . 1 . . . Indirectly . | . . . . . . . Trap Hack Attempts . | . . . . . . . Triggered . | . . . . . . . Disarmed . | . . . . . . . Reprogrammed . | . . . . . . . Reused . | . . . . . . . Traps Extracted . | . . . . . . . Installed . | . . . . . . . Triggered . | . . . . . . . Machines | -11 -10 -10 -9 -9 -9 -8 ---------- Run | Jun Mat Min Mat Min Exi Min Machines Disabled 3 | . . . 3 . . . Max in Single Turn 1 | . . . 1 . . . Machines Repaired . | . . . . . . . Machines Sabotaged . | . . . . . . . Overloaded Fab Kills . | . . . . . . . Hacking | -11 -10 -10 -9 -9 -9 -8 --------- Run | Jun Mat Min Mat Min Exi Min Machines Accessed 8 | . 2 . 5 . 1 . Terminals 6 | . 2 . 4 . . . Fabricators . | . . . . . . . Repair Stations . | . . . . . . . Recycling Units . | . . . . . . . Scanalyzers 1 | . . . 1 . . . Garrison Access . | . . . . . . . Total Hacks 16 | . 3 . 12 . 1 . Successful 9 | . 2 . 6 . 1 . Failed 7 | . 1 . 6 . . . Catastrophic 2 | . . . 2 . . . Database Lockouts . | . . . . . . . Manual 15 | . 3 . 11 . 1 . Terminals 14 | . 3 . 11 . . . Fabricators . | . . . . . . . Repair Stations . | . . . . . . . Recycling Units . | . . . . . . . Scanalyzers 1 | . . . 1 . . . Garrison Access . | . . . . . . . Terminal Hacks 8 | . 2 . 5 . 1 . Branch Access Points 1 | . . . 1 . . . Terminal Index 3 | . 1 . 2 . . . Hauler Manifests 3 | . 1 . 2 . . . EX-Prototype ID Bank 1 | . . . . . 1 . Fabricator Hacks . | . . . . . . . Repair Station Hacks . | . . . . . . . Recycling Unit Hacks . | . . . . . . . Scanalyzer . | . . . . . . . Garrison Access Hacks . | . . . . . . . Unauthorized Hacks 1 | . . . 1 . . . Terminals 1 | . . . 1 . . . Assimilate 1 | . . . 1 . . . Fabricators . | . . . . . . . Repair Stations . | . . . . . . . Recycling Units . | . . . . . . . Scanalyzers . | . . . . . . . Garrison Access . | . . . . . . . Data Cores Recovered 1 | . . . 1 . . . Used . | . . . . . . . Hacking Detections 6 | . 2 . 4 . . . Full Trace Events . | . . . . . . . Feedback Events . | . . . . . . . Feedback Blocked . | . . . . . . . Robot Schematics Acquired . | . . . . . . . Robots Built . | . . . . . . . Authchips . | . . . . . . . Time . | . . . . . . . Total Robot Build Rating . | . . . . . . . Part Schematics Acquired . | . . . . . . . Parts Built . | . . . . . . . Authchips . | . . . . . . . Time . | . . . . . . . Total Part Build Rating . | . . . . . . . Parts Repaired . | . . . . . . . Time . | . . . . . . . Parts Recycled . | . . . . . . . Recycled Matter . | . . . . . . . Retrieved Matter . | . . . . . . . Retrieved Components . | . . . . . . . Parts Scanalyzed . | . . . . . . . Part Schematics Acquired . | . . . . . . . Parts Damaged . | . . . . . . . Bothacking | -11 -10 -10 -9 -9 -9 -8 ------------ Run | Jun Mat Min Mat Min Exi Min Used RIF Installer . | . . . . . . . Robots Hacked . | . . . . . . . Non-combat . | . . . . . . . Combat . | . . . . . . . Robot Hacks Applied . | . . . . . . . Relay Couplers Released . | . . . . . . . Fabnet Peak Effective % . | . . . . . . . Robots Rewired . | . . . . . . . Allies Hacked . | . . . . . . . Hacks Repelled . | . . . . . . . Allies | -11 -10 -10 -9 -9 -9 -8 -------- Run | Jun Mat Min Mat Min Exi Min Total Allies . | . . . . . . . Largest Group . | . . . . . . . Highest-Rated Group . | . . . . . . . Highest-Rated Ally . | . . . . . . . Total Orders . | . . . . . . . Ally Attacks . | . . . . . . . Total Damage . | . . . . . . . Kills . | . . . . . . . Allies Corrupted . | . . . . . . . Allies Melted . | . . . . . . . Intel | -11 -10 -10 -9 -9 -9 -8 ------- Run | Jun Mat Min Mat Min Exi Min Robot Analysis Total . | . . . . . . . Derelict Logs Recovered 1 | . . . . 1 . . Drone Launches . | . . . . . . . Drone Recoveries . | . . . . . . . Exploration | -11 -10 -10 -9 -9 -9 -8 ------------- Run | Jun Mat Min Mat Min Exi Min Turns Passed 2969 | 21 506 135 1342 240 240 485 Spaces Moved 2258 | 11 395 136 987 165 241 323 Core 1 | . . . 1 . . . Treads . | . . . . . . . Legs 9 | 8 . . . . 1 . Wheels 2246 | 3 395 136 985 165 239 323 Hover . | . . . . . . . Flight 2 | . . . 1 . 1 . Fastest Speed 90 | 100 100 100 90 90 90 95 Average Speed 95 | 114 100 100 93 90 95 95 Slowest Speed 360 | 120 100 100 360 90 109 95 Overloaded Moves . | . . . . . . . Propulsion Burnouts . | . . . . . . . Robots Hopped . | . . . . . . . Cave-ins Triggered . | . . . . . . . Exploration Rate (%) 42 | 2 64 39 63 25 62 43 Regions Visited 6 Branch Regions 4 Pre-discovered Areas . | . . . . . . . Known Exits Taken 3 | . . . 1 1 1 . Unknown Exits Taken 3 | 1 1 1 . . . . Scrap Searched 3 | . . 2 . 1 . . Spaces Dug . | . . . . . . . Terrain Destroyed 4 | . . . . 2 . 2 Melee . | . . . . . . . Projectile 4 | . . . . 2 . 2 AOE . | . . . . . . . Terrain Rammed . | . . . . . . . Walls Destroyed . | . . . . . . . Machines Disabled . | . . . . . . . Actions | -11 -10 -10 -9 -9 -9 -8 --------- Run | Jun Mat Min Mat Min Exi Min Total 2816 | 20 455 135 1263 215 253 475 Wait 267 | . 11 . 105 25 . 126 Move 2252 | 10 394 135 986 164 240 323 Hop . | . . . . . . . Pick Up 21 | 5 6 . 9 . 1 . Fast Attach 22 | . 5 . 14 . 3 . Attach 12 | 3 . . 5 . 2 2 Detach 5 | . . . 3 . 2 . Swap 9 | . . . 9 . . . Drop 37 | 2 7 . 23 . 5 . Fire 152 | . 26 . 86 20 . 20 Melee . | . . . . . . . Ram 2 | . . . . . . 2 Kick . | . . . . . . . Crush . | . . . . . . . Escape Stasis . | . . . . . . . Rewire . | . . . . . . . Trap . | . . . . . . . Miscellaneous 37 | . 6 . 23 6 . 2 Route ------- -11/Junkyard -10/Materials -10/Mines -9/Materials (discovered 5 exits: *Mat / *Min x2 / *Sto x2) -9/Mines (discovered 3 exits: *Mat x2 / *Exi) -9/Exiles (discovered 2 exits: *Min x2) -8/Mines History --------- Turn | Location | Event 1 | -11/Junkyard | Upgraded with Propulsion slot (x1) 1 | -11/Junkyard | Upgraded with Utility slot (x1) 1 | -11/Junkyard | Upgraded with Weapon slot (x1) 1 | -11/Junkyard | Discovered new exit (range 3) 22 | -11/Junkyard | Entered Materials 304 | -10/Materials | Build established: Mutant 515 | -10/Materials | Discovered new exit (range 8) 528 | -10/Materials | Entered Mines 592 | -10/Mines | Met a Derelict bent on vengeance 628 | -10/Mines | Found a hidden stash of uninstalled traps 633 | -10/Mines | Discovered new exit (range 15) 663 | -10/Mines | Entered Materials 665 | -9/Materials | Reached level 2 732 | -9/Materials | Upgraded with Utility slot (x1) 824 | -9/Materials | Reached level 3 973 | -9/Materials | Discovered new exit (range 3) 1186 | -9/Materials | Discovered new exit (range 12) 1309 | -9/Materials | Discovered new exit (range 6) 1458 | -9/Materials | Discovered new exit (range 3) 1489 | -9/Materials | Reached level 4 1545 | -9/Materials | Build established: Scavenger-Mutant 1571 | -9/Materials | Upgraded with Utility slot (x1) 1571 | -9/Materials | Upgraded with Weapon slot (x1) 1756 | -9/Materials | Identified exit to Mines 1756 | -9/Materials | Identified exit to Storage 1874 | -9/Materials | Build established: Scavenger-Gunner 1903 | -9/Materials | Reached level 5 2005 | -9/Materials | Entered Mines 2019 | -9/Mines | Learned location of 1 exit from Proximity Caves 2142 | -9/Mines | Discovered new exit (range 8) 2151 | -9/Mines | Discovered new exit (range 9) 2157 | -9/Mines | Identified exit to Materials 2197 | -9/Mines | Reached level 6 2240 | -9/Mines | Deemed a non-threat by the Exiles lab entrance 2240 | -9/Mines | Discovered new exit (range 6) 2244 | -9/Mines | Identified exit to Exiles 2245 | -9/Mines | Entered Exiles 2245 | -9/Exiles | Upgraded with Propulsion slot (x1) 2262 | -9/Exiles | Discovered new exit (range 15) 2273 | -9/Exiles | Met 8R-AWN 2289 | -9/Exiles | Met EX-HEX 2317 | -9/Exiles | Met EX-BIN 2327 | -9/Exiles | Aligned with FarCom system 2328 | -9/Exiles | Given EX-Vault access code 2352 | -9/Exiles | Opened EX-Vault 2358 | -9/Exiles | Found Potential Leg 2371 | -9/Exiles | Found 0b10 Alert Chip 2391 | -9/Exiles | Warned to stay clear of 0b10 Research branches 2429 | -9/Exiles | Met EX-DEC 2476 | -9/Exiles | Discovered new exit (range 10) 2483 | -9/Exiles | Identified exit to Mines 2485 | -9/Exiles | Left Exiles lab with 0b10 Alert Chip 2485 | -9/Exiles | Entered Mines 2855 | -8/Mines | Build established: Scavenger-Mutant 2893 | -8/Mines | Reached level 7 2962 | -8/Mines | Core integrity fell below 50% 2970 | -8/Mines | Self-destructed Last Messages --------------- 02893_ Reached level 7. 02893_ S-10 Pest destroyed. 02896_ System corrupted: Energy discharge (-106). 02898_ Acquired 8 matter. 02899_ K-01 Serf collects debris. 02904_ Destroyed Flight Unit. 02904_ S-10 Pest knocked back. 02910_ Acquired 2 matter. 02913_ S-10 Pest destroyed. 02916_ 1WI OUAK395 #2|CX%P Q1QP ZTJ,O& 5BNMOK< 02919_ Used Protomatter to restore core integrity (+3, depleted) 02920_ U-05 Engineer builds a Wall. 02922_ Slammed into U-05 Engineer. 02938_ U-05 Engineer destroyed. 02942_ Acquired 23 matter. 02942_ K-01 Serf collects debris. 02956_ System corrupted: Energy discharge (-79). 02959_ Critical hit (Burn: +37). 02964_ Lgt. Armor Plating destroyed. 02967_ Critical hit (Burn: +37). Map ----- +----------------------------------------------------+ | | | | | | | | | | | | | ???????????????????????????????????????????? | | ????????????????######?????????????????????? | | ???????????????########????????????????????? | | ???????????????### ###????????############# | | ???????????????## ####################### | | ???????????????## #############=* = = | | ???????????????## ##### =*######### | | ???????????????### ##### ######## ######### | | ???????????????#### #### ######## ##? ##### | | ????????????????#### ### ###???## ##? | | ?????????????????#### ## ####### ## ? | | ??????????????????#### ####### ## ##?? | | ???????????????????#### #### #### # ##?? | | ????????????????????### ####! ###? | | ????????????????####### ! = ##? | | ???????????????######## ### |= ### ##? | | ??????????????#### ;# ### #### ###? | | ???#########??### gg ### ###? | | ??############## g #### ?? | | ?#### ###### @ ##### #### | | #### #### b ######b ###?? ### | | ### ## % % ##?### # ###?# ### | | ## ###??## # ##??## ##? | | ## #########??## # ##??### ###? | | ## #########???## # ##???###### ? | | ## #######????????? # ##????#####?? | | ### #######??????????g # #??????????? | | #### ###??????????????#### ???????????? | | ?#### ##??????????????? ? ???????????? | | ??### ##?######???????????? ?????????????? | | ??## ###########?????????? ##???????????? | | ??## #### #####?????????###???????????? | | ??### ## ###?????????###???????????? | | ??### ##???????????????????????? | | ??### ?????????????????????? | | ??### #### ## ##?????????????????????? | | ??## ##### ## ##?????????????????????? | | ??## ###?? ## ##?????????????????????? | | ??### ###??? ## ####???????????????????? | | ??### #####?## ####???????????????????? | | ??### ######## ???????????????????? | | ?#### ###### # ##??????????????????? | | ?### #### ### ##??????????????????? | | ?## ## ###? ###?????????????????? | +----------------------------------------------------+ Best States ------------- Heat Dissipation 25 Energy Generation 14 Energy Capacity 265 Matter Stores 300 Matter Capacity 300 Sight Range 16 Terrain Scan Density 10 Armor Coverage 150 Utility Shielding 33 Evasion (%) 42 Offensive Hacking 5 Item Schematics ----------------- None Robot Schematics ------------------ None Fabricated ------------ Nothing Alien Tech Used ----------------- None Achievements -------------- None Challenges ------------ None RPGLIKE | -11 -10 -10 -9 -9 -9 -8 --------- Run | Jun Mat Min Mat Min Exi Min Levels Raised 6 | . . . 4 1 . 1 XP Earned 12181 | 3000 950 500 5031 1400 350 950 XP Spent 9430 | 3000 . . 4380 . 2050 . Upgrades 21 | 6 . . 13 . 2 . Propulsion Slot 2 | 1 . . . . 1 . Utility Slot 3 | 1 . . 2 . . . Weapon Slot 2 | 1 . . 1 . . . Core Integrity 8 | . . . 8 . . . Inventory Capacity 5 | 3 . . 1 . 1 . Hack Attack % 1 | . . . 1 . . . Protomatter Created 249 | . 36 . 175 35 . 3 Integrity Restored 746 | . 108 . 524 105 . 9 Core 746 | . 108 . 524 105 . 9 Protomatter Decayed . | . . . . . . . Game ------ Seed MetafieldFortressTearclaws Manual? 0 Play Time 00:29:24 Cumulative 33.4 hours Start 2024.02.06 @ 20:47:31 End 2024.02.06 @ 21:15:02 Sessions 1 Manual Loads 0 Difficulty Rogue Special Mode Winter2019/RPGLIKE Game No. 62 Rogue 62 Adventurer 0 Explorer 0 Win Type - Total 1 Types 1/0/0/0/0/0/0/0/0 Lore% 28 Gallery% 40 Achievement% 34 Wizard Run 0 Options --------- ASCII 0 Keyboard 0 Movement Mouse Keybinds 1 Fullscreen 2 Font 18/SmallcapsGlow Map View 76x50 Tactical HUD 1 Map Filters NONE Filters BRIGHTNESS(100) Steam 1 RUN: 9bf1a5ed-c2a1-4815-860d-182196e0c25d